lending/lending_fUSD_20250920
["ID","MTS","AMOUNT","RATE_DAILY","PERIOD"]
[386582882,1758411049079,-520.58,0.0002219,2]
[386582883,1758411049089,-400.0,0.0002219,2]
[386582884,1758411049104,-400.0,0.0002219,2]
[386582885,1758411049115,-400.0,0.0002219,2]
[386582886,1758411049125,-400.0,0.0002219,2]
[386582887,1758411049136,-400.0,0.0002219,2]
[386582888,1758411049145,-400.0,0.0002219,2]
[386582889,1758411049155,-400.0,0.0002219,2]
[386582890,1758411049164,-400.0,0.0002219,2]
[386582891,1758411049177,-400.0,0.0002219,2]
[386582892,1758411049187,-1232.86,0.0002219,2]
[386582893,1758411049198,-400.0,0.0002219,2]
[386582894,1758411049207,-400.0,0.0002219,2]
[386582895,1758411049217,-805.27,0.0002219,2]
[386582896,1758411049227,-400.0,0.0002219,2]
[386582897,1758411049236,-400.0,0.0002219,2]
[386582898,1758411049246,-400.0,0.0002219,2]
[386582899,1758411049256,-400.0,0.0002219,2]
[386582900,1758411049266,-785.66,0.0002219,2]
[386582901,1758411049276,-525.84,0.0002219,2]
[386582902,1758411049286,-400.0,0.0002219,2]
[386582903,1758411049295,-534.02911595,0.0002219,2]
[386582904,1758411049306,-586.0,0.0002219,2]
[386582905,1758411049316,-400.0,0.0002219,2]
[386582906,1758411049326,-400.0,0.0002219,2]
[386582907,1758411049336,-400.0,0.0002219,2]
[386582908,1758411049347,-400.0,0.0002219,2]
[386582909,1758411049356,-400.0,0.0002219,2]
[386582910,1758411049366,-400.0,0.0002219,2]
[386582911,1758411049375,-400.0,0.0002219,2]
[386582912,1758411049385,-400.0,0.0002219,2]
[386582913,1758411049395,-400.0,0.0002219,2]
[386582914,1758411049405,-400.0,0.0002219,2]
[386582915,1758411049416,-417.45,0.0002219,2]
[386582916,1758411049426,-400.0,0.0002219,2]
[386582917,1758411049437,-400.0,0.0002219,2]
[386582918,1758411049449,-400.0,0.0002219,2]
[386582919,1758411049459,-400.0,0.0002219,2]
[386582920,1758411049468,-400.0,0.0002219,2]
[386582921,1758411049478,-400.0,0.0002219,2]
[386582922,1758411049488,-400.0,0.0002219,2]
[386582923,1758411049498,-400.0,0.0002219,2]
[386582924,1758411049509,-400.0,0.0002219,2]
[386582925,1758411049518,-400.0,0.0002219,2]
[386582926,1758411049528,-400.0,0.0002219,2]
[386582927,1758411049538,-400.0,0.0002219,2]
[386582928,1758411049547,-456.7,0.0002219,2]
[386582929,1758411049558,-400.0,0.0002219,2]
[386582930,1758411049568,-400.0,0.0002219,2]
[386582931,1758411049579,-400.0,0.0002219,2]
[386582932,1758411049589,-400.0,0.0002219,2]
[386582933,1758411049599,-413.47,0.0002219,2]
[386582934,1758411049609,-1119.76,0.0002219,2]
[386582935,1758411049620,-400.0,0.0002219,2]
[386582936,1758411049631,-400.0,0.0002219,2]
[386582937,1758411049641,-1188.82,0.0002219,2]
[386582938,1758411049651,-400.0,0.0002219,2]
[386582939,1758411049661,-400.0,0.0002219,2]
[386582940,1758411049671,-151.0,0.0002219,7]
[386582941,1758411049680,-468.42,0.0002219,2]
[386582942,1758411049690,-151.0,0.0002219,7]
[386582943,1758411049701,-1123.48,0.0002219,2]
[386582944,1758411049711,-400.0,0.0002219,2]
[386582945,1758411049721,-400.0,0.0002219,2]
[386582946,1758411049731,-151.0,0.0002219,7]
[386582947,1758411049741,-400.0,0.0002219,2]
[386582948,1758411049751,-400.0,0.0002219,2]
[386582949,1758411049761,-536.52,0.0002219,2]
[386582950,1758411049771,-416.99,0.0002219,2]
[386582951,1758411049780,-400.0,0.0002219,2]
[386582952,1758411049791,-151.0,0.0002219,7]
[386582953,1758411049800,-151.0,0.0002219,7]
[386582954,1758411049810,-400.0,0.0002219,2]
[386582955,1758411049820,-1384.3,0.0002219,2]
[386582956,1758411049830,-400.0,0.0002219,2]
[386582957,1758411049840,-400.0,0.0002219,2]
[386582958,1758411049849,-400.0,0.0002219,2]
[386582959,1758411049859,-400.0,0.0002219,2]
[386582960,1758411049869,-400.0,0.0002219,2]
[386582961,1758411049879,-10663.12,0.0002219,2]
[386582962,1758411049889,-400.0,0.0002219,2]
[386582963,1758411049899,-400.0,0.0002219,2]
[386582964,1758411049909,-400.0,0.0002219,2]
[386582965,1758411049919,-400.0,0.0002219,2]
[386582966,1758411049928,-505.14,0.0002219,2]
[386582967,1758411049938,-941.59,0.0002219,2]
[386582968,1758411049948,-465.27,0.0002219,2]
[386582969,1758411049957,-488.79,0.0002219,2]
[386582970,1758411049967,-400.0,0.0002219,2]
[386582971,1758411049976,-400.0,0.0002219,2]
[386582972,1758411049986,-400.0,0.0002219,2]
[386582973,1758411049995,-400.0,0.0002219,2]
[386582974,1758411050005,-8640.32,0.0002219,2]
[386582975,1758411050015,-400.0,0.0002219,2]
[386582976,1758411050024,-400.0,0.0002219,2]
[386582977,1758411050034,-400.0,0.0002219,2]
[386582978,1758411050043,-400.0,0.0002219,2]
[386582979,1758411050053,-400.0,0.0002219,2]
[386582980,1758411050063,-16865.07,0.0002219,2]
[386582981,1758411050072,-400.0,0.0002219,2]
[386582982,1758411050082,-151.0,0.0002219,7]
[386582983,1758411050092,-848.28,0.0002219,2]
[386582984,1758411050104,-400.0,0.0002219,2]
[386582985,1758411050113,-151.0,0.0002219,7]
[386582986,1758411050123,-979.23,0.0002219,2]
[386582987,1758411050133,-969.74,0.0002219,2]
[386582988,1758411050142,-400.0,0.0002219,2]
[386582989,1758411050152,-400.0,0.0002219,2]
[386582990,1758411050161,-9878.67,0.0002219,2]
[386582991,1758411050172,-151.0,0.0002219,7]
[386582992,1758411050182,-151.0,0.0002219,7]
[386582993,1758411050191,-407.2898319,0.0002219,2]
[386582994,1758411050201,-400.0,0.0002219,2]
[386582995,1758411050211,-151.0,0.0002219,7]
[386582996,1758411050220,-7127.75,0.0002219,2]
[386582997,1758411050230,-400.0,0.0002219,2]
[386582998,1758411050239,-151.0,0.0002219,7]
[386582999,1758411050249,-1625.56,0.0002219,2]
[386583000,1758411050259,-400.0,0.0002219,2]
[386583001,1758411050270,-400.0,0.0002219,2]
[386583002,1758411050283,-5798.24,0.0002219,2]
[386583003,1758411050296,-400.0,0.0002219,2]
[386583004,1758411050308,-151.0,0.0002219,7]
[386583005,1758411050320,-518.98,0.0002219,2]
[386583006,1758411050331,-400.0,0.0002219,2]
[386583007,1758411050341,-400.0,0.0002219,2]
[386583008,1758411050351,-151.0,0.0002219,7]
[386583009,1758411050361,-400.0,0.0002219,2]
[386583010,1758411050371,-400.0,0.0002219,2]
[386583011,1758411050380,-3515.75,0.0002219,2]
[386583012,1758411050391,-3063.29,0.0002219,2]
[386583013,1758411050401,-400.0,0.0002219,2]
[386583014,1758411050411,-400.0,0.0002219,2]
[386583015,1758411050421,-414.27,0.0002219,2]
[386583016,1758411050431,-400.0,0.0002219,2]
[386583017,1758411050440,-400.0,0.0002219,2]
[386583018,1758411050450,-1003.21,0.0002219,2]
[386583019,1758411050460,-400.0,0.0002219,2]
[386583020,1758411050709,-151.0,0.0002219,7]
[386583021,1758411050720,-151.0,0.0002219,7]
[386583022,1758411050730,-400.0,0.0002219,2]
[386583023,1758411050739,-151.0,0.0002219,7]
[386583024,1758411050749,-400.0,0.0002219,2]
[386583025,1758411050758,-670.93,0.0002219,2]
[386583026,1758411050767,-151.0,0.0002219,7]
[386583027,1758411050777,-1643.08,0.0002219,2]
[386583028,1758411050787,-222.28528028,0.0002219,2]
[386583029,1758411050796,-151.0,0.0002219,7]
[386583030,1758411050805,-160.973359,0.0002219,7]
[386583031,1758411050815,-400.0,0.0002219,2]
[386583032,1758411050825,-151.0,0.0002219,7]
[386583033,1758411050834,-546.38,0.0002219,2]
[386583034,1758411050844,-295.462983,0.0002219,7]
[386583035,1758411050853,-990.27,0.0002219,2]
[386583036,1758411050863,-400.0,0.0002219,2]
[386583037,1758411050872,-382.78595,0.0002219,7]
[386583038,1758411050882,-382.78595,0.0002219,7]
[386583039,1758411050891,-400.0,0.0002219,2]
[386583040,1758411050901,-400.0,0.0002219,2]
[386583041,1758411050912,-382.78595,0.0002219,7]
[386583042,1758411050923,-555.99,0.0002219,2]
[386583043,1758411050932,-382.78595,0.0002219,7]
[386583044,1758411050942,-151.0,0.0002219,7]
[386583045,1758411050951,-2200.43,0.0002219,2]
[386583046,1758411050961,-151.0,0.0002219,7]
[386583047,1758411050970,-151.0,0.0002219,7]
[386583048,1758411050980,-436.66,0.0002219,2]
[386583049,1758411050989,-400.0,0.0002219,2]
[386583050,1758411051000,-719.004436,0.0002219,7]
[386583051,1758411051010,-400.0,0.0002219,2]
[386583052,1758411051019,-719.004436,0.0002219,7]
[386583053,1758411051028,-4525.56,0.0002219,2]
[386583054,1758411051037,-400.0,0.0002219,2]
[386583055,1758411051047,-719.004436,0.0002219,7]
[386583056,1758411051057,-443.92,0.0002219,2]
[386583057,1758411051066,-719.004436,0.0002219,7]
[386583058,1758411051076,-400.0,0.0002219,2]
[386583059,1758411051085,-4961.42,0.0002219,2]
[386583060,1758411051096,-400.0,0.0002219,2]
[386583061,1758411051108,-400.0,0.0002219,2]
[386583062,1758411051120,-151.0,0.0002219,7]
[386583063,1758411051130,-400.0,0.0002219,2]
[386583064,1758411051139,-400.0,0.0002219,2]
[386583065,1758411051148,-151.0,0.0002219,7]
[386583066,1758411051158,-151.0,0.0002219,7]
[386583067,1758411051167,-400.0,0.0002219,2]
[386583068,1758411051177,-400.0,0.0002219,2]
[386583069,1758411051189,-400.0,0.0002219,2]
[386583070,1758411051200,-532.24,0.0002219,2]
[386583071,1758411051210,-635.2,0.0002219,2]
[386583072,1758411051221,-919.96,0.0002219,2]
[386583073,1758411051231,-1866.94,0.0002219,2]
[386583074,1758411051240,-400.0,0.0002219,2]
[386583075,1758411051250,-400.0,0.0002219,2]
[386583076,1758411051260,-400.0,0.0002219,2]
[386583077,1758411051270,-400.0,0.0002219,2]
[386583078,1758411051279,-12330.36,0.0002219,2]
[386583079,1758411051289,-400.0,0.0002219,2]
[386583080,1758411051298,-1327.89,0.0002219,2]
[386583081,1758411051308,-400.0,0.0002219,2]
[386583082,1758411051318,-400.0,0.0002219,2]
[386583083,1758411051328,-417.15,0.0002219,2]
[386583084,1758411051337,-400.0,0.0002219,2]
[386583085,1758411051347,-4766.73,0.0002219,2]
[386583086,1758411051356,-151.0,0.0002219,7]
[386583087,1758411051365,-400.0,0.0002219,2]
[386583088,1758411051375,-151.0,0.0002219,7]
[386583089,1758411051384,-400.0,0.0002219,2]
[386583090,1758411051394,-2421.52,0.0002219,2]
[386583091,1758411051404,-400.0,0.0002219,2]
[386583092,1758411051413,-400.0,0.0002219,2]
[386583093,1758411051422,-400.0,0.0002219,2]
[386583094,1758411051431,-1022.23,0.0002219,2]
[386583095,1758411051441,-400.0,0.0002219,2]
[386583096,1758411051451,-400.0,0.0002219,2]
[386583097,1758411051461,-317.21990276,0.0002219,2]
[386583098,1758411051470,-433.48,0.0002219,2]
[386583099,1758411051481,-661.84,0.0002219,2]
[386583100,1758411051492,-400.0,0.0002219,2]
[386583101,1758411051501,-636.33,0.0002219,2]
[386583102,1758411051513,-4248.55,0.0002219,2]
[386583103,1758411051524,-400.0,0.0002219,2]
[386583104,1758411051535,-400.0,0.0002219,2]
[386583105,1758411051545,-562.78,0.0002219,2]
[386583106,1758411051555,-408.02,0.0002219,2]
[386583107,1758411051565,-400.0,0.0002219,2]
[386583108,1758411051574,-400.0,0.0002219,2]
[386583109,1758411051584,-400.0,0.0002219,2]
[386583110,1758411051593,-455.24,0.0002219,2]
[386583111,1758411051602,-400.0,0.0002219,2]
[386583112,1758411051612,-400.0,0.0002219,2]
[386583113,1758411051621,-905.3,0.0002219,2]
[386583114,1758411051630,-400.0,0.0002219,2]
[386583115,1758411051640,-400.0,0.0002219,2]
[386583116,1758411051650,-151.0,0.0002219,7]
[386583117,1758411051659,-151.0,0.0002219,7]
[386583118,1758411051668,-400.0,0.0002219,2]
[386583119,1758411051678,-274.235436,0.0002219,7]
[386583120,1758411051688,-400.0,0.0002219,2]
[386583121,1758411051699,-400.0,0.0002219,2]
[386583122,1758411051709,-400.0,0.0002219,2]
[386583123,1758411051720,-151.0,0.0002219,7]
[386583124,1758411051731,-400.0,0.0002219,2]
[386583125,1758411051742,-903.46,0.0002219,2]
[386583126,1758411051752,-763.28,0.0002219,2]
[386583127,1758411051761,-400.0,0.0002219,2]
[386583128,1758411051771,-400.0,0.0002219,2]
[386583129,1758411051781,-405.95,0.00022191,2]
[386583130,1758411051792,-400.0,0.00022191,2]
[386583131,1758411051802,-400.0,0.00022191,2]
[386583132,1758411051812,-499.4,0.00022191,2]
[386583133,1758411051823,-400.0,0.00022191,2]
[386583134,1758411051834,-400.0,0.00022191,2]
[386583135,1758411051844,-400.0,0.00022191,2]
[386583136,1758411051855,-400.0,0.00022191,2]
[386583137,1758411051866,-400.0,0.00022191,2]
[386583138,1758411051875,-1221.05,0.00022191,2]
[386583139,1758411051885,-400.0,0.00022191,2]
[386583140,1758411051895,-456.39,0.00022191,2]
[386583141,1758411051904,-412.83,0.00022191,2]
[386583142,1758411051913,-400.0,0.00022191,2]
[386583143,1758411051923,-422.18,0.00022191,2]
[386583144,1758411051932,-400.0,0.00022191,2]
[386583145,1758411051942,-735.5,0.00022191,2]
[386583146,1758411051951,-400.0,0.00022191,2]
[386583147,1758411051961,-400.0,0.00022191,2]
[386583148,1758411051970,-973.78,0.00022191,2]
[386583149,1758411051979,-400.0,0.00022191,2]
[386583150,1758411051988,-780.68,0.00022191,2]
[386583151,1758411051998,-460.22,0.00022191,2]
[386583152,1758411052007,-401.40845484,0.00022191,2]
[386583153,1758411052017,-400.0,0.00022191,2]
[386583154,1758411052026,-400.0,0.00022191,2]
[386583155,1758411052036,-445.21,0.00022191,2]
[386583156,1758411052046,-783.53,0.00022191,2]
[386583157,1758411052056,-400.0,0.00022191,2]
[386583158,1758411052068,-1017.9,0.00022191,2]
[386583159,1758411052077,-400.0,0.00022191,2]
[386583160,1758411052088,-400.0,0.00022191,2]
[386583161,1758411052100,-400.0,0.00022191,2]
[386583162,1758411052112,-400.0,0.00022191,2]
[386583163,1758411052122,-400.0,0.00022191,2]
[386583164,1758411052133,-400.0,0.00022191,2]
[386583165,1758411052144,-400.0,0.00022191,2]
[386583166,1758411052154,-400.0,0.00022191,2]
[386583167,1758411052165,-400.0,0.00022191,2]
[386583168,1758411052175,-400.0,0.00022191,2]
[386583169,1758411052185,-400.0,0.00022191,2]
[386583170,1758411052194,-400.0,0.00022191,2]
[386583171,1758411052205,-905.84,0.00022191,2]
[386583172,1758411052214,-400.0,0.00022191,2]
[386583173,1758411052223,-400.0,0.00022191,2]
[386583174,1758411052232,-400.0,0.00022191,2]
[386583175,1758411052244,-516.97,0.00022191,2]
[386583176,1758411052253,-917.42,0.00022191,2]
[386583177,1758411052263,-400.0,0.00022191,2]
[386583178,1758411052272,-400.0,0.00022191,2]
[386583179,1758411052281,-416.67,0.00022191,2]
[386583180,1758411052291,-1155.51,0.00022191,2]
[386583181,1758411052301,-400.0,0.00022191,2]
[386583182,1758411052310,-400.0,0.00022191,2]
[386583183,1758411052320,-428.9097487,0.00022191,2]
[386583184,1758411052330,-400.0,0.00022191,2]
[386583185,1758411052339,-400.0,0.00022191,2]
[386583186,1758411052349,-400.0,0.00022191,2]
[386583187,1758411052358,-427.62,0.00022191,2]
[386583188,1758411052368,-466.23,0.00022191,2]
[386583189,1758411052377,-400.0,0.00022191,2]
[386583190,1758411052387,-417.39,0.00022191,2]
[386583191,1758411052397,-400.0,0.00022191,2]
[386583192,1758411052407,-400.0,0.00022191,2]
[386583193,1758411052417,-470.39,0.00022191,2]
[386583194,1758411052426,-400.0,0.00022191,2]
[386583195,1758411052436,-400.0,0.00022191,2]
[386583196,1758411052445,-400.0,0.00022191,2]
[386583197,1758411052455,-400.0,0.00022191,2]
[386583198,1758411052464,-400.0,0.00022191,2]
[386583199,1758411052474,-400.0,0.00022191,2]
[386583200,1758411052484,-414.82570237,0.00022191,2]
[386583201,1758411052495,-400.0,0.00022191,2]
[386583202,1758411052504,-753.02,0.00022191,2]
[386583203,1758411052514,-1423.3,0.00022191,2]
[386583204,1758411052523,-1080.62,0.00022191,2]
[386583205,1758411052533,-25010.4,0.00022191,2]
[386583206,1758411052542,-430.06,0.00022191,2]
[386583207,1758411052552,-1865.61,0.00022191,2]
[386583208,1758411052561,-2667.35,0.00022191,2]
[386583209,1758411052570,-1922.03,0.00022191,2]
[386583210,1758411052580,-3013.62,0.00022191,2]
[386583211,1758411052590,-2227.82,0.00022191,2]
[386583212,1758411052599,-400.0,0.00022191,2]
[386583213,1758411052608,-1911.57,0.00022191,2]
[386583214,1758411052619,-1326.64,0.00022191,2]
[386583215,1758411052628,-1598.81,0.00022191,2]
[386583216,1758411052638,-400.0,0.00022191,2]
[386583217,1758411052647,-233.586048,0.00022191,7]
[386583218,1758411052656,-1006.97,0.00022191,2]
[386583219,1758411052666,-400.0,0.00022191,2]
[386583220,1758411052676,-400.0,0.00022191,2]
[386583221,1758411052685,-2287.61,0.00022191,2]
[386583222,1758411052695,-1946.76,0.00022191,2]
[386583223,1758411052704,-382.78595,0.00022191,7]
[386583224,1758411052714,-382.78595,0.00022191,7]
[386583225,1758411052723,-2942.69,0.00022191,2]
[386583226,1758411052733,-382.78595,0.00022191,7]
[386583227,1758411052743,-382.78595,0.00022191,7]
[386583228,1758411052752,-151.0,0.00022191,7]
[386583229,1758411052762,-635.03,0.00022191,2]
[386583230,1758411052771,-151.0,0.00022191,7]
[386583231,1758411052781,-151.0,0.00022191,7]
[386583232,1758411052790,-719.004436,0.00022191,7]
[386583233,1758411052800,-719.004436,0.00022191,7]
[386583234,1758411052810,-510.31,0.00022191,2]
[386583235,1758411052819,-719.004436,0.00022191,7]
[386583236,1758411052829,-719.004436,0.00022191,7]
[386583237,1758411052838,-400.0,0.00022191,2]
[386583238,1758411052847,-400.0,0.00022191,2]
[386583239,1758411052858,-400.0,0.00022191,2]
[386583240,1758411052868,-400.0,0.00022191,2]
[386583241,1758411052877,-400.0,0.00022191,2]
[386583242,1758411052887,-2086.33,0.00022191,2]
[386583243,1758411052896,-151.0,0.00022191,7]
[386583244,1758411052906,-151.0,0.00022191,7]
[386583245,1758411052915,-400.0,0.00022191,2]
[386583246,1758411052925,-210.234936,0.00022191,7]
[386583247,1758411052935,-400.0,0.00022191,2]
[386583248,1758411052945,-4322.37,0.00022191,2]
[386583249,1758411052955,-1428.44,0.00022191,2]
[386583250,1758411052964,-1503.82,0.00022191,2]
[386583251,1758411052974,-400.0,0.00022191,2]
[386583252,1758411052983,-151.0,0.00022191,7]
[386583253,1758411052993,-400.0,0.00022191,2]
[386583254,1758411053003,-151.0,0.00022191,7]
[386583255,1758411053104,-1087.06,0.00022191,2]
[386583256,1758411053116,-517.51,0.00022191,2]
[386583257,1758411053126,-400.0,0.00022191,2]
[386583258,1758411053135,-1799.59,0.00022191,2]
[386583259,1758411053144,-400.0,0.00022191,2]
[386583260,1758411053154,-400.0,0.00022191,2]
[386583261,1758411053163,-400.0,0.00022191,2]
[386583262,1758411053174,-1269.39,0.00022191,2]
[386583263,1758411053184,-400.0,0.00022191,2]
[386583264,1758411053194,-400.0,0.00022191,2]
[386583265,1758411053204,-400.0,0.00022191,2]
[386583266,1758411053215,-400.0,0.00022191,2]
[386583267,1758411053224,-400.0,0.00022191,2]
[386583268,1758411053234,-404.19968436,0.00022191,2]
[386583269,1758411053244,-810.42,0.00022191,2]
[386583270,1758411053253,-400.0,0.00022191,2]
[386583271,1758411053265,-5158.25,0.00022191,2]
[386583272,1758411053274,-842.58,0.00022191,2]
[386583273,1758411053283,-1153.91,0.00022191,2]
[386583274,1758411053292,-646.59,0.00022191,2]
[386583275,1758411053301,-1052.06,0.00022191,2]
[386583276,1758411053311,-400.0,0.00022191,2]
[386583277,1758411053320,-151.0,0.00022191,7]
[386583278,1758411053329,-151.0,0.00022191,7]
[386583279,1758411053338,-400.0,0.00022191,2]
[386583280,1758411053348,-1366.55,0.00022191,2]
[386583281,1758411053357,-400.0,0.00022191,2]
[386583282,1758411053367,-697.33,0.00022191,2]
[386583283,1758411053376,-400.0,0.00022191,2]
[386583284,1758411053385,-407.8334013,0.00022191,2]
[386583285,1758411053395,-404.27,0.00022191,2]
[386583286,1758411053404,-400.0,0.00022191,2]
[386583287,1758411053413,-542.58,0.00022191,2]
[386583288,1758411053423,-1046.52,0.00022191,2]
[386583289,1758411053433,-400.0,0.00022191,2]
[386583290,1758411053442,-1207.09,0.00022191,2]
[386583291,1758411053451,-1420.88,0.00022191,2]
[386583292,1758411053461,-92981.71,0.000222,7]
[386583293,1758411053474,-727.63573709,0.00022242,2]
[386583294,1758411053483,-151.0,0.00022256,2]
[386583295,1758411053492,-150.0,0.00022258,4]
[386583296,1758411053502,-400.0,0.00022363,2]
[386583297,1758411053511,-400.0,0.00022363,2]
[386583298,1758411053520,-400.0,0.00022363,2]
[386583299,1758411053529,-400.0,0.00022363,2]
[386583300,1758411053539,-400.0,0.00022363,2]
[386583301,1758411053550,-309.92650103,0.00022363,2]
[386583302,1758411053560,-400.0,0.00022363,2]
[386583303,1758411053570,-400.0,0.00022364,2]
[386583304,1758411053579,-400.0,0.00022364,2]
[386583305,1758411053588,-400.0,0.00022364,2]
[386583306,1758411053598,-400.0,0.00022364,2]
[386583307,1758411053608,-400.0,0.00022364,2]
[386583308,1758411053617,-400.0,0.00022364,2]
[386583309,1758411053627,-400.0,0.00022364,2]
[386583310,1758411053637,-400.0,0.00022364,2]
[386583311,1758411053646,-400.0,0.00022364,2]
[386583312,1758411053655,-400.0,0.00022364,2]
[386583313,1758411053665,-400.0,0.00022364,2]
[386583314,1758411053676,-400.0,0.00022364,2]
[386583315,1758411053686,-400.0,0.00022364,2]
[386583316,1758411053696,-400.0,0.00022364,2]
[386583317,1758411053708,-400.0,0.00022364,2]
[386583318,1758411053719,-400.0,0.00022364,2]
[386583319,1758411053728,-400.0,0.00022364,2]
[386583320,1758411053740,-400.0,0.00022364,2]
[386583321,1758411053750,-400.0,0.00022364,2]
[386583322,1758411053760,-400.0,0.00022364,2]
[386583323,1758411053770,-400.0,0.00022364,2]
[386583324,1758411053780,-405.44128999,0.00022364,2]
[386583325,1758411053789,-400.0,0.00022364,2]
[386583326,1758411053799,-400.0,0.00022364,2]
[386583327,1758411053809,-400.0,0.00022364,2]
[386583328,1758411053818,-414.78556731,0.00022364,2]
[386583329,1758411053827,-400.0,0.00022364,2]
[386583330,1758411053837,-400.0,0.00022364,2]
[386583331,1758411053846,-400.0,0.00022364,2]
[386583332,1758411053856,-400.0,0.00022364,2]
[386583333,1758411053865,-400.0,0.00022364,2]
[386583334,1758411053875,-400.0,0.00022364,2]
[386583335,1758411053884,-400.0,0.00022364,2]
[386583336,1758411053893,-400.0,0.00022364,2]
[386583337,1758411053904,-657.49510239,0.00022364,2]
[386583338,1758411053919,-400.0,0.00022364,2]
[386583339,1758411053931,-400.0,0.00022364,2]
[386583340,1758411053940,-400.0,0.00022364,2]
[386583341,1758411053950,-400.0,0.00022364,2]
[386583342,1758411053960,-400.0,0.00022364,2]
[386583343,1758411053969,-400.0,0.00022364,2]
[386583344,1758411053979,-400.0,0.00022364,2]
[386583345,1758411053988,-400.0,0.00022364,2]
[386583346,1758411053999,-400.0,0.00022364,2]
[386583347,1758411054009,-400.0,0.00022364,2]
[386583348,1758411054018,-400.0,0.00022364,2]
[386583349,1758411054028,-2048.99,0.00022364,2]
[386583350,1758411054037,-1659.76,0.00022364,2]
[386583351,1758411054046,-1236.79,0.00022364,2]
[386583352,1758411054055,-4173.28,0.00022364,2]
[386583353,1758411054066,-4633.73,0.00022364,2]
[386583354,1758411054076,-6322.23,0.00022364,2]
[386583355,1758411054086,-4106.46,0.00022364,2]
[386583356,1758411054097,-400.0,0.00022364,2]
[386583357,1758411054107,-1453.11,0.00022364,2]
[386583358,1758411054120,-2677.19,0.00022364,2]
[386583359,1758411054131,-400.0,0.00022364,2]
[386583360,1758411054141,-400.0,0.00022364,2]
[386583361,1758411054151,-2457.51,0.00022364,2]
[386583362,1758411054161,-400.0,0.00022364,2]
[386583363,1758411054171,-150.0,0.00022419,2]
[386583364,1758411054181,-257.98960231,0.0002242,2]
[386583365,1758411054190,-328.81027745,0.00022421,2]
[386583366,1758411054201,-399.63095259,0.00022423,2]
[386583367,1758411054211,-151.0,0.00022423,7]
[386583368,1758411054222,-197.347427,0.00022423,7]
[386583369,1758411054232,-151.0,0.00022423,7]
[386583370,1758411054243,-151.0,0.00022423,7]
[386583371,1758411054253,-151.0,0.00022423,7]
[386583372,1758411054262,-151.0,0.00022423,7]
[386583373,1758411054271,-151.0,0.00022423,7]
[386583374,1758411054280,-151.0,0.00022423,7]
[386583375,1758411054290,-151.0,0.00022423,7]
[386583376,1758411054299,-151.0,0.00022423,7]
[386583377,1758411054308,-470.45162773,0.00022424,2]
[386583378,1758411054317,-541.27230288,0.00022426,2]
[386583379,1758411054326,-612.09297802,0.00022427,2]
[386583380,1758411054335,-682.91365316,0.00022428,2]
[386583381,1758411054345,-753.73432831,0.0002243,2]